[Event "7th Cesme Open-C 2019"]
[Site "Cesme"]
[Date "2019.06.25"]
[Round "3"]
[White "Ipek, Egehan"]
[Black "Bas, Selin"]
[Result "0-1"]
[ECO "E90"]
[WhiteElo "1394"]
[BlackElo "1286"]
[Annotator "NA"]
[PlyCount "130"]
[EventDate "2019.06.24"]
[EventType "swiss"]
[EventCountry "TUR"]
[SourceTitle "playchess.com"]
[Source "ChessBase"]
[SourceQuality "1"]
[TimeControl "5400+30"]

1. d4 {[%emt 0:00:30]} Nf6 {[%emt 0:00:30]} 2. Nf3 {[%emt 0:00:30]} g6 {[%emt 0:00:00]} 3. c4 {[%emt 0:00:30]} Bg7 {[%emt 0:00:00]} 4. Nc3 {[%emt 0:00:30]} O-O {[%emt 0:00:00]} 5. e4 {[%emt 0:00:30]} d6 {[%emt 0:00:00]} 6. Bg5 {[%emt 0:01:30]} c6 {[%emt 0:04:30]} 7. Qd2 {[%emt 0:04:30]} Re8 {[%emt 0:02:30]} 8. Rd1 {[%emt 0:09:30]} Qc7 {[%emt 0:07:30]} 9. Bd3 {[%emt 0:04:30]} Nbd7 {[%emt 0:01:30]} 10. Bh6 {[%emt 0:02:30]} e5 {[%emt 0:05:30]} 11. Bxg7 {[%emt 0:00:30]} Kxg7 {[%emt 0:00:00]} 12. d5 {[%emt 0:00:30]} cxd5 {[%emt 0:02:00]} 13. cxd5 {[%emt 0:01:30]} Nc5 {[%emt 0:02:30]} 14. Bb1 {[%emt 0:00:30]} a5 {[%emt 0:05:30]} 15. O-O {[%emt 0:09:30]} b6 {[%emt 0:01:30]} 16. Nh4 {[%emt 0:05:30]} Qe7 {[%emt 0:08:30]} 17. Qe3 {[%emt 0:12:30]} Nh5 {[%emt 0:05:30]} 18. Nf3 {[%emt 0:07:30]} Rf8 {[%emt 0:05:30]} 19. Nd2 {[%emt 0:03:30]} Ba6 {[%emt 0:02:30]} 20. Rfe1 {[%emt 0:00:30]} Qf6 {[%emt 0:03:30]} 21. g3 {[%emt 0:04:30]} Rac8 {[%emt 0:04:30]} 22. a3 {[%emt 0:01:30]} a4 {[%emt 0:04:30]} 23. Bc2 {[%emt 0:01:30]} b5 {[%emt 0:00:30]} 24. Na2 {[%emt 0:01:30]} Rb8 {[%emt 0:02:30]} 25. Nb4 {[%emt 0:01:30]} Bb7 {[%emt 0:01:30]} 26. Nb1 {[%emt 0:01:30]} Na6 {[%emt 0:02:30]} 27. Qd2 {[%emt 0:03:30]} Rfc8 {[%emt 0:04:30]} 28. Bd3 {[%emt 0:00:30]} Nc7 {[%emt 0:04:48]} 29. Nc3 {[%emt 0:01:30]} Ba8 {[%emt 0:00:42]} 30. Qe2 {[%emt 0:00:30]} Qg5 {[%emt 0:03:44]} 31. h4 {[%emt 0:00:30]} Qd8 {[%emt 0:00:56]} 32. Nxb5 {[%emt 0:00:30]} Nxb5 {[%emt 0:00:41]} 33. Bxb5 {[%emt 0:00:30]} Qb6 {[%emt 0:01:14]} 34. Bd7 {[%emt 0:02:07]} Rf8 {[%emt 0:02:57]} 35. Bg4 {[%emt 0:01:27]} Nxg3 {[%emt 0:02:00]} 36. Qe3 {[%emt 0:00:50]} Qxe3 {[%emt 0:01:15]} 37. Rxe3 {[%emt 0:00:07]} Nh5 {[%emt 0:00:21]} 38. Bxh5 {[%emt 0:00:37]} gxh5 {[%emt 0:00:09]} 39. Rc1 {[%emt 0:01:38]} Rbc8 {[%emt 0:02:06]} 40. Rec3 {[%emt 0:03:01]} Bb7 {[%emt 0:00:47]} 41. Rxc8 {[%emt 0:01:14]} Rxc8 {[%emt 0:00:30]} 42. Rxc8 {[%emt 0:00:30]} Bxc8 {[%emt 0:00:30]} 43. Nc6 {[%emt 0:00:30]} Kf8 {[%emt 0:00:30]} 44. Kg2 {[%emt 0:02:04]} f5 {[%emt 0:01:05]} 45. Kf3 {[%emt 0:01:10]} Ke8 {[%emt 0:01:12]} 46. Ke3 {[%emt 0:01:43]} fxe4 {[%emt 0:01:35]} 47. Kxe4 {[%emt 0:00:15]} Kd7 {[%emt 0:01:18]} 48. f4 {[%emt 0:03:05]} exf4 {[%emt 0:00:22]} 49. Kxf4 {[%emt 0:00:00]} Kc7 {[%emt 0:01:51]} 50. Kg5 {[%emt 0:00:40]} Bg4 {[%emt 0:00:25]} 51. Kh6 {[%emt 0:01:12]} Bf3 {[%emt 0:00:59]} 52. Nb4 {[%emt 0:00:36]} Kb6 {[%emt 0:00:35]} 53. Kxh7 {[%emt 0:00:46]} Kc5 {[%emt 0:00:12]} 54. Kg6 {[%emt 0:00:00]} Kc4 {[%emt 0:01:24]} 55. Kf6 {[%emt 0:01:23]} Bxd5 {[%emt 0:01:06]} 56. Nxd5 {[%emt 0:00:33]} Kxd5 {[%emt 0:00:37]} 57. Kg5 {[%emt 0:00:11]} Ke4 {[%emt 0:00:00]} 58. Kxh5 {[%emt 0:00:21]} d5 {[%emt 0:00:04]} 59. Kg5 {[%emt 0:00:45]} d4 {[%emt 0:00:08]} 60. h5 {[%emt 0:00:00]} d3 {[%emt 0:00:08]} 61. h6 {[%emt 0:00:02]} d2 {[%emt 0:00:11]} 62. h7 {[%emt 0:00:30]} d1=Q {[%emt 0:00:30]} 63. h8=Q {[%emt 0:00:00]} Qg1+ {[%emt 0:00:01]} 64. Kh6 {[%emt 0:00:00]} Qh1+ {[%emt 0:00:10]} 65. Kg7 {[%emt 0:00:37]} Qxh8+ {[%emt 0:00:05]} 0-1

[Event "7th Cesme Open-C 2019"]
[Site "Cesme"]
[Date "2019.06.25"]
[Round "3"]
[White "Teber, Eyup"]
[Black "Gunes, Deren"]
[Result "0-1"]
[ECO "B90"]
[WhiteElo "1333"]
[BlackElo "1257"]
[Annotator "NA"]
[PlyCount "84"]
[EventDate "2019.06.24"]
[EventType "swiss"]
[EventCountry "TUR"]
[SourceTitle "playchess.com"]
[Source "ChessBase"]
[SourceQuality "1"]
[TimeControl "5400+30"]

1. e4 {[%emt 0:08:30]} c5 {[%emt 0:00:30]} 2. Nf3 {[%emt 0:00:30]} d6 {[%emt 0:00:00]} 3. d4 {[%emt 0:00:30]} cxd4 {[%emt 0:00:00]} 4. Nxd4 {[%emt 0:00:30]} Nf6 {[%emt 0:00:00]} 5. Nc3 {[%emt 0:00:00]} a6 {[%emt 0:00:00]} 6. Be3 {[%emt 0:00:00]} e5 {[%emt 0:00:30]} 7. Nb3 {[%emt 0:00:30]} Be6 {[%emt 0:00:30]} 8. f3 {[%emt 0:00:30]} Be7 {[%emt 0:00:30]} 9. Qd2 {[%emt 0:03:30]} O-O {[%emt 0:01:30]} 10. O-O-O {[%emt 0:01:30]} Nbd7 {[%emt 0:10:30]} 11. Kb1 {[%emt 0:01:30]} b5 {[%emt 0:07:30]} 12. g4 {[%emt 0:00:30]} b4 {[%emt 0:03:30]} 13. Nd5 {[%emt 0:00:30]} Bxd5 {[%emt 0:00:30]} 14. exd5 {[%emt 0:00:30]} a5 {[%emt 0:01:30]} 15. g5 {[%emt 0:03:30]} Nh5 {[%emt 0:01:30]} 16. Bd3 {[%emt 0:01:30]} Rb8 {[%emt 0:05:30]} 17. Rhg1 {[%emt 0:10:30]} Qc7 {[%emt 0:05:30]} 18. Qe2 {[%emt 0:13:30]} a4 {[%emt 0:01:30]} 19. Nd2 {[%emt 0:14:30]} Nc5 {[%emt 0:07:30]} 20. Bc4 {[%emt 0:11:30]} Rfc8 {[%emt 0:08:30]} 21. f4 {[%emt 0:08:40]} Nxf4 {[%emt 0:02:30]} 22. Bxf4 {[%emt 0:02:42]} exf4 {[%emt 0:01:30]} 23. Rdf1 {[%emt 0:05:17]} Nd7 {[%emt 0:12:30]} 24. Qxe7 {[%emt 0:03:17]} Re8 {[%emt 0:00:30]} 25. Qxe8+ {[%emt 0:04:18]} Rxe8 {[%emt 0:00:30]} 26. Re1 {[%emt 0:00:00]} Rxe1+ {[%emt 0:00:30]} 27. Rxe1 {[%emt 0:00:00]} Ne5 {[%emt 0:00:30]} 28. Bb5 {[%emt 0:00:07]} a3 {[%emt 0:00:30]} 29. Nc4 {[%emt 0:00:54]} g6 {[%emt 0:00:30]} 30. b3 {[%emt 0:00:47]} Nxc4 {[%emt 0:01:30]} 31. Bxc4 {[%emt 0:00:11]} Qc5 {[%emt 0:00:30]} 32. Kc1 {[%emt 0:01:05]} f3 {[%emt 0:00:30]} 33. h4 {[%emt 0:01:49]} f2 {[%emt 0:02:30]} 34. Re8+ {[%emt 0:00:02]} Kg7 {[%emt 0:00:00]} 35. Re4 {[%emt 0:00:48]} Qxc4 {[%emt 0:03:00]} 36. Rxc4 {[%emt 0:01:30]} f1=Q+ {[%emt 0:00:00]} 37. Kd2 {[%emt 0:00:00]} Qg2+ {[%emt 0:00:00]} 38. Kd3 {[%emt 0:01:32]} Qxd5+ {[%emt 0:01:30]} 39. Rd4 {[%emt 0:00:03]} Qf3+ {[%emt 0:00:30]} 40. Kc4 {[%emt 0:00:09]} Qc3+ {[%emt 0:00:30]} 41. Kd5 {[%emt 0:01:11]} Qc5+ {[%emt 0:00:30]} 42. Ke4 {[%emt 0:00:03]} Qxc2+ {[%emt 0:00:00]} 0-1

[Event "7th Cesme Open-C 2019"]
[Site "Cesme"]
[Date "2019.06.25"]
[Round "3"]
[White "Yigit, Cansu"]
[Black "Karaca, Yigit"]
[Result "1-0"]
[ECO "B45"]
[WhiteElo "1314"]
[BlackElo "1383"]
[Annotator "NA"]
[PlyCount "99"]
[EventDate "2019.06.24"]
[EventType "swiss"]
[EventCountry "TUR"]
[SourceTitle "playchess.com"]
[Source "ChessBase"]
[SourceQuality "1"]
[TimeControl "5400+30"]

1. e4 {[%emt 0:00:30]} c5 {[%emt 0:00:30]} 2. Nf3 {[%emt 0:00:00]} e6 {[%emt 0:00:30]} 3. d4 {[%emt 0:00:00]} cxd4 {[%emt 0:00:30]} 4. Nxd4 {[%emt 0:00:30]} Nf6 {[%emt 0:00:30]} 5. Nc3 {[%emt 0:00:00]} Nc6 {[%emt 0:00:00]} 6. Be2 {[%emt 0:00:00]} Bb4 {[%emt 0:00:00]} 7. Nxc6 {[%emt 0:00:30]} bxc6 {[%emt 0:00:00]} 8. f3 {[%emt 0:02:30]} d5 {[%emt 0:09:00]} 9. exd5 {[%emt 0:09:30]} exd5 {[%emt 0:03:30]} 10. O-O {[%emt 0:03:30]} Bd6 {[%emt 0:03:30]} 11. Bd3 {[%emt 0:04:30]} O-O {[%emt 0:02:30]} 12. Be3 {[%emt 0:08:30]} Qc7 {[%emt 0:07:30]} 13. f4 {[%emt 0:03:30]} Ng4 {[%emt 0:18:30]} 14. Qf3 {[%emt 0:03:30]} Nxe3 {[%emt 0:05:30]} 15. Qxe3 {[%emt 0:00:30]} Qa5 {[%emt 0:06:30]} 16. Qf3 {[%emt 0:04:30]} Qb6+ {[%emt 0:14:30]} 17. Kh1 {[%emt 0:02:30]} Qxb2 {[%emt 0:04:30]} 18. Rab1 {[%emt 0:04:30]} Qa3 {[%emt 0:00:00]} 19. Rb3 {[%emt 0:00:00]} Qc5 {[%emt 0:04:29]} 20. Qh5 {[%emt 0:03:00]} g6 {[%emt 0:03:20]} 21. Qh6 {[%emt 0:00:30]} f5 {[%emt 0:04:53]} 22. Ne2 {[%emt 0:06:30]} Rf7 {[%emt 0:05:42]} 23. h4 {[%emt 0:05:30]} Bf8 {[%emt 0:01:31]} 24. Qg5 {[%emt 0:00:30]} Qe7 {[%emt 0:01:50]} 25. Qg3 {[%emt 0:03:30]} Bg7 {[%emt 0:00:46]} 26. Rf3 {[%emt 0:03:30]} Qd6 {[%emt 0:00:34]} 27. Re3 {[%emt 0:02:30]} c5 {[%emt 0:01:15]} 28. c4 {[%emt 0:01:30]} d4 {[%emt 0:00:44]} 29. Re8+ {[%emt 0:00:30]} Rf8 {[%emt 0:00:31]} 30. Rxf8+ {[%emt 0:00:30]} Kxf8 {[%emt 0:00:13]} 31. Qf3 {[%emt 0:00:30]} Rb8 {[%emt 0:00:30]} 32. Rxb8 {[%emt 0:00:30]} Qxb8 {[%emt 0:00:00]} 33. Qd5 {[%emt 0:00:30]} Qc7 {[%emt 0:00:25]} 34. Kg1 {[%emt 0:04:30]} Bb7 {[%emt 0:01:09]} 35. Qe6 {[%emt 0:00:30]} Bc8 {[%emt 0:00:13]} 36. Qd5 {[%emt 0:00:30]} Bb7 {[%emt 0:00:00]} 37. Qe6 {[%emt 0:00:00]} Qe7 {[%emt 0:00:00]} 38. Qxe7+ {[%emt 0:00:00]} Kxe7 {[%emt 0:00:00]} 39. Nc1 {[%emt 0:02:30]} Kd6 {[%emt 0:01:28]} 40. a4 {[%emt 0:00:00]} Bf6 {[%emt 0:00:31]} 41. g3 {[%emt 0:00:00]} Bc6 {[%emt 0:00:26]} 42. Bc2 {[%emt 0:00:30]} h6 {[%emt 0:01:18]} 43. Kf2 {[%emt 0:01:30]} Be4 {[%emt 0:00:24]} 44. Nd3 {[%emt 0:10:23]} g5 {[%emt 0:01:09]} 45. h5 {[%emt 0:00:46]} gxf4 {[%emt 0:00:53]} 46. gxf4 {[%emt 0:00:18]} Bc6 {[%emt 0:00:26]} 47. Kg3 {[%emt 0:01:02]} Be8 {[%emt 0:00:23]} 48. Bd1 {[%emt 0:00:14]} Bf7 {[%emt 0:00:27]} 49. Nb2 {[%emt 0:01:37]} Bd8 {[%emt 0:00:26]} 50. Bc2 {[%emt 0:02:26]} 1-0

[Event "7th Cesme Open-C 2019"]
[Site "Cesme"]
[Date "2019.06.26"]
[Round "4"]
[White "Yigit, Cansu"]
[Black "Kaya, Nehar Baris"]
[Result "0-1"]
[ECO "B84"]
[WhiteElo "1314"]
[BlackElo "1409"]
[Annotator "NA RC"]
[PlyCount "75"]
[EventDate "2019.06.24"]
[EventType "swiss"]
[EventCountry "TUR"]
[SourceTitle "playchess.com"]
[Source "ChessBase"]
[SourceQuality "1"]
[TimeControl "5400+30"]

1. e4 {[%emt 0:32:30]} c5 {[%emt 0:16:30]} 2. Nf3 {[%emt 0:00:30]} e6 {[%emt 0:00:30]} 3. d4 {[%emt 0:00:30]} cxd4 {[%emt 0:00:30]} 4. Nxd4 {[%emt 0:00:30]} Nf6 {[%emt 0:00:30]} 5. Nc3 {[%emt 0:00:30]} d6 {[%emt 0:00:30]} 6. Be2 {[%emt 0:00:30]} a6 {[%emt 0:00:30]} 7. Be3 {[%emt 0:00:30]} b5 {[%emt 0:00:30]} 8. a3 {[%emt 0:00:30]} Bb7 {[%emt 0:00:30]} 9. Qd3 {[%emt 0:00:30]} Nbd7 {[%emt 0:00:30]} 10. f3 {[%emt 0:00:30]} d5 {[%emt 0:00:30]} 11. exd5 {[%emt 0:00:30]} Nxd5 {[%emt 0:00:30]} 12. Nxd5 {[%emt 0:00:30]} Bxd5 {[%emt 0:00:30]} 13. O-O {[%emt 0:00:30]} Rc8 {[%emt 0:00:30]} 14. Nb3 {[%emt 0:00:30]} Be7 {[%emt 0:00:30]} 15. f4 {[%emt 0:00:30]} O-O {[%emt 0:00:30]} 16. Rad1 {[%emt 0:00:30]} Qc7 {[%emt 0:00:30]} 17. Rd2 {[%emt 0:00:30]} Nb6 {[%emt 0:00:30]} 18. Bxb6 {[%emt 0:00:30]} Qxb6+ {[%emt 0:00:30]} 19. Kh1 {[%emt 0:00:30]} Rfd8 {[%emt 0:00:30]} 20. Qg3 {[%emt 0:00:30]} Bf6 {[%emt 0:00:30]} 21. f5 {[%emt 0:04:30]} exf5 {[%emt 0:02:30]} 22. Rxf5 {[%emt 0:00:30]} Be4 {[%emt 0:01:30]} 23. Rxd8+ {[%emt 0:02:30]} Qxd8 {[%emt 0:02:30]} 24. Rc5 {[%emt 0:03:30]} Bxc2 {[%emt 0:02:30]} 25. Rxc8 {[%emt 0:00:30]} Qxc8 {[%emt 0:01:30]} 26. Bg4 {[%emt 0:00:00]} Qd8 {[%emt 0:00:30]} 27. Nc5 {[%emt 0:04:00]} g6 {[%emt 0:02:30]} 28. Nxa6 {[%emt 0:02:30]} Qd2 {[%emt 0:10:30]} 29. h4 {[%emt 0:05:30]} Qc1+ {[%emt 0:00:30]} 30. Kh2 {[%emt 0:00:30]} Qxb2 {[%emt 0:00:30]} 31. Kh3 {[%emt 0:00:30]} Be5 {[%emt 0:02:30]} 32. Qe3 {[%emt 0:00:30]} h5 {[%emt 0:03:30]} 33. Bd7 {[%emt 0:01:30]} Qa1 {[%emt 0:01:30]} 34. Qxe5 {[%emt 0:06:30]} Qxe5 {[%emt 0:00:30]} 35. g4 {[%emt 0:00:30]} Qe3+ {[%emt 0:00:30]} 36. Kg2 {[%emt 0:02:30]} Be4+ {[%emt 0:00:30]} 37. Kf1 {[%emt 0:00:30]} Qd3+ {[%emt 0:00:30]} 38. Ke1 {[%emt 0:00:00]} 0-1

[Event "7th Cesme Open-C 2019"]
[Site "Cesme"]
[Date "2019.06.26"]
[Round "4"]
[White "Bas, Selin"]
[Black "Tarim, Metehan"]
[Result "0-1"]
[ECO "D02"]
[WhiteElo "1286"]
[BlackElo "1338"]
[Annotator "NA RC"]
[PlyCount "110"]
[EventDate "2019.06.24"]
[EventType "swiss"]
[EventCountry "TUR"]
[SourceTitle "playchess.com"]
[Source "ChessBase"]
[SourceQuality "1"]
[TimeControl "5400+30"]

1. d4 {[%emt 0:00:30]} d5 {[%emt 0:00:30]} 2. Bf4 {[%emt 0:00:30]} Nf6 {[%emt 0:00:30]} 3. e3 {[%emt 0:00:00]} e6 {[%emt 0:00:30]} 4. Nf3 {[%emt 0:00:00]} Bd6 {[%emt 0:00:30]} 5. Bg3 {[%emt 0:01:30]} O-O {[%emt 0:01:30]} 6. Nbd2 {[%emt 0:00:30]} b6 {[%emt 0:00:30]} 7. Bd3 {[%emt 0:00:00]} Bb7 {[%emt 0:00:00]} 8. Ne5 {[%emt 0:05:00]} c5 {[%emt 0:01:00]} 9. c3 {[%emt 0:00:00]} Qc7 {[%emt 0:02:30]} 10. f4 {[%emt 0:03:00]} c4 {[%emt 0:01:30]} 11. Bc2 {[%emt 0:00:30]} b5 {[%emt 0:01:30]} 12. Qf3 {[%emt 0:18:30]} b4 {[%emt 0:02:30]} 13. Rc1 {[%emt 0:00:30]} Qb6 {[%emt 0:05:30]} 14. Qd1 {[%emt 0:11:30]} Nbd7 {[%emt 0:04:30]} 15. O-O {[%emt 0:01:30]} bxc3 {[%emt 0:02:30]} 16. bxc3 {[%emt 0:00:30]} Qa5 {[%emt 0:00:30]} 17. Bb1 {[%emt 0:06:30]} Nb6 {[%emt 0:01:30]} 18. Ndf3 {[%emt 0:02:30]} Ne4 {[%emt 0:02:30]} 19. Bxe4 {[%emt 0:03:30]} dxe4 {[%emt 0:00:30]} 20. Nd2 {[%emt 0:00:30]} Bd5 {[%emt 0:01:30]} 21. Qc2 {[%emt 0:01:30]} f5 {[%emt 0:01:30]} 22. Rb1 {[%emt 0:02:30]} Rfc8 {[%emt 0:01:30]} 23. Rbd1 {[%emt 0:06:30]} Na4 {[%emt 0:01:30]} 24. Nb1 {[%emt 0:00:30]} Rab8 {[%emt 0:00:30]} 25. Rd2 {[%emt 0:03:30]} Nb2 {[%emt 0:03:30]} 26. Rff2 {[%emt 0:02:30]} Nd3 {[%emt 0:01:30]} 27. Nxd3 {[%emt 0:01:30]} cxd3 {[%emt 0:00:30]} 28. Qd1 {[%emt 0:00:30]} Bc4 {[%emt 0:01:30]} 29. Qc1 {[%emt 0:00:30]} Bb5 {[%emt 0:00:30]} 30. a3 {[%emt 0:05:30]} Rc4 {[%emt 0:01:30]} 31. Rb2 {[%emt 0:02:30]} Rbc8 {[%emt 0:00:30]} 32. Rb3 {[%emt 0:02:14]} Ba4 {[%emt 0:01:30]} 33. Rb7 {[%emt 0:04:53]} Bc2 {[%emt 0:00:00]} 34. Rf1 {[%emt 0:01:07]} Bxb1 {[%emt 0:00:00]} 35. Qxb1 {[%emt 0:00:30]} Rxc3 {[%emt 0:00:30]} 36. Be1 {[%emt 0:00:51]} Qxa3 {[%emt 0:01:30]} 37. Bxc3 {[%emt 0:00:24]} Qxc3 {[%emt 0:00:30]} 38. Rd1 {[%emt 0:05:45]} d2 {[%emt 0:01:30]} 39. Rb3 {[%emt 0:01:19]} Qc1 {[%emt 0:00:30]} 40. Kf2 {[%emt 0:02:37]} a5 {[%emt 0:02:30]} 41. Ke2 {[%emt 0:00:43]} Bb4 {[%emt 0:00:30]} 42. Rb2 {[%emt 0:00:52]} Qc4+ {[%emt 0:01:30]} 43. Kf2 {[%emt 0:00:20]} Qc7 {[%emt 0:00:30]} 44. Rxb4 {[%emt 0:01:05]} axb4 {[%emt 0:00:30]} 45. Qxb4 {[%emt 0:00:15]} g5 {[%emt 0:00:30]} 46. g3 {[%emt 0:00:42]} g4 {[%emt 0:01:30]} 47. Rxd2 {[%emt 0:00:10]} Qc1 {[%emt 0:00:00]} 48. Kg2 {[%emt 0:02:25]} Qe1 {[%emt 0:00:00]} 49. Rb2 {[%emt 0:00:38]} Qxe3 {[%emt 0:01:30]} 50. Qb3 {[%emt 0:00:44]} Qxb3 {[%emt 0:01:30]} 51. Rxb3 {[%emt 0:00:30]} Rc2+ {[%emt 0:00:30]} 52. Kg1 {[%emt 0:00:30]} Rd2 {[%emt 0:00:00]} 53. Rb4 {[%emt 0:00:00]} e3 {[%emt 0:00:00]} 54. Rb3 {[%emt 0:00:28]} Rd1+ {[%emt 0:00:30]} 55. Kg2 {[%emt 0:00:49]} e2 {[%emt 0:00:30]} 0-1

[Event "7th Cesme Open-C 2019"]
[Site "Cesme"]
[Date "2019.06.26"]
[Round "4"]
[White "Gunes, Deren"]
[Black "Celik, Ege Mustafa"]
[Result "1-0"]
[ECO "C78"]
[WhiteElo "1257"]
[BlackElo "1248"]
[Annotator "NA RC"]
[PlyCount "87"]
[EventDate "2019.06.24"]
[EventType "swiss"]
[EventCountry "TUR"]
[SourceTitle "playchess.com"]
[Source "ChessBase"]
[SourceQuality "1"]
[TimeControl "5400+30"]

1. e4 {[%emt 0:05:30]} e5 {[%emt 0:19:30]} 2. Nf3 {[%emt 0:00:30]} Nc6 {[%emt 0:00:30]} 3. Bb5 {[%emt 0:00:30]} a6 {[%emt 0:00:30]} 4. Ba4 {[%emt 0:00:30]} b5 {[%emt 0:00:30]} 5. Bb3 {[%emt 0:00:30]} Bc5 {[%emt 0:00:30]} 6. O-O {[%emt 0:00:30]} Nf6 {[%emt 0:00:30]} 7. c3 {[%emt 0:00:30]} Bb6 {[%emt 0:00:30]} 8. Re1 {[%emt 0:01:30]} O-O {[%emt 0:00:30]} 9. d4 {[%emt 0:00:30]} Qe7 {[%emt 0:04:30]} 10. Bg5 {[%emt 0:10:30]} Bb7 {[%emt 0:00:30]} 11. Bd5 {[%emt 0:00:30]} d6 {[%emt 0:02:30]} 12. Nh4 {[%emt 0:03:30]} exd4 {[%emt 0:00:30]} 13. cxd4 {[%emt 0:01:30]} Bxd4 {[%emt 0:17:30]} 14. Nf5 {[%emt 0:03:30]} Qe5 {[%emt 0:00:30]} 15. Nxd4 {[%emt 0:00:30]} Qxd4 {[%emt 0:00:00]} 16. Qxd4 {[%emt 0:03:30]} Nxd4 {[%emt 0:00:00]} 17. Bxb7 {[%emt 0:00:00]} Ra7 {[%emt 0:00:30]} 18. Bxf6 {[%emt 0:01:00]} gxf6 {[%emt 0:00:00]} 19. Bd5 {[%emt 0:01:30]} Nc2 {[%emt 0:00:00]} 20. Nc3 {[%emt 0:00:00]} Nxa1 {[%emt 0:00:30]} 21. Rxa1 {[%emt 0:00:00]} b4 {[%emt 0:04:30]} 22. Ne2 {[%emt 0:00:30]} f5 {[%emt 0:01:30]} 23. Nd4 {[%emt 0:00:30]} a5 {[%emt 0:01:30]} 24. Nxf5 {[%emt 0:00:30]} Ra6 {[%emt 0:02:30]} 25. Rc1 {[%emt 0:02:30]} c5 {[%emt 0:00:30]} 26. Rd1 {[%emt 0:01:30]} Rb6 {[%emt 0:08:30]} 27. Rd3 {[%emt 0:04:30]} Kh8 {[%emt 0:01:30]} 28. Rh3 {[%emt 0:01:30]} f6 {[%emt 0:01:30]} 29. Rg3 {[%emt 0:00:30]} Ra6 {[%emt 0:02:30]} 30. Rg7 {[%emt 0:04:30]} a4 {[%emt 0:02:30]} 31. Rd7 {[%emt 0:01:30]} b3 {[%emt 0:05:30]} 32. a3 {[%emt 0:00:30]} c4 {[%emt 0:00:30]} 33. Bxc4 {[%emt 0:04:30]} Rc6 {[%emt 0:00:30]} 34. Nxd6 {[%emt 0:00:30]} Rfc8 {[%emt 0:00:30]} 35. Nxc8 {[%emt 0:15:30]} Rxc4 {[%emt 0:00:30]} 36. Rd8+ {[%emt 0:00:30]} Kg7 {[%emt 0:00:30]} 37. h3 {[%emt 0:00:30]} Rc2 {[%emt 0:00:30]} 38. Nb6 {[%emt 0:00:00]} Rxb2 {[%emt 0:00:30]} 39. Nxa4 {[%emt 0:00:00]} Ra2 {[%emt 0:00:30]} 40. Rb8 {[%emt 0:00:30]} Rxa3 {[%emt 0:00:30]} 41. Nb2 {[%emt 0:00:30]} Kg6 {[%emt 0:00:30]} 42. Kf1 {[%emt 0:00:30]} Ra1+ {[%emt 0:01:30]} 43. Ke2 {[%emt 0:00:30]} Rg1 {[%emt 0:00:30]} 44. g3 {[%emt 0:00:30]} 1-0

[Event "7th Cesme Open-C 2019"]
[Site "Cesme"]
[Date "2019.06.26"]
[Round "4"]
[White "Surucu, Efe Mustafa"]
[Black "Tekin, Utku Berk"]
[Result "1/2-1/2"]
[ECO "D11"]
[WhiteElo "1198"]
[BlackElo "1303"]
[Annotator "NA RC"]
[PlyCount "32"]
[EventDate "2019.06.24"]
[EventType "swiss"]
[EventCountry "TUR"]
[SourceTitle "playchess.com"]
[Source "ChessBase"]
[SourceQuality "1"]
[TimeControl "5400+30"]

1. d4 {[%emt 0:00:30]} d5 {[%emt 0:00:30]} 2. Nf3 {[%emt 0:00:30]} Nf6 {[%emt 0:00:00]} 3. g3 {[%emt 0:00:00]} Bf5 {[%emt 0:01:00]} 4. Bg2 {[%emt 0:00:00]} e6 {[%emt 0:00:30]} 5. O-O {[%emt 0:00:30]} Nbd7 {[%emt 0:01:30]} 6. c4 {[%emt 0:01:30]} c6 {[%emt 0:02:30]} 7. Nc3 {[%emt 0:01:30]} Be7 {[%emt 0:02:30]} 8. Nd2 {[%emt 0:06:30]} Qb6 {[%emt 0:05:30]} 9. e4 {[%emt 0:08:30]} Bg4 {[%emt 0:19:30]} 10. Qb3 {[%emt 0:10:30]} Nxe4 {[%emt 0:08:30]} 11. Ndxe4 {[%emt 0:02:30]} dxe4 {[%emt 0:00:30]} 12. Bxe4 {[%emt 0:00:30]} Nf6 {[%emt 0:04:30]} 13. Bg2 {[%emt 0:03:30]} Rd8 {[%emt 0:10:30]} 14. Be3 {[%emt 0:01:30]} Qxb3 {[%emt 0:01:30]} 15. axb3 {[%emt 0:00:30]} a6 {[%emt 0:00:30]} 16. d5 {[%emt 0:06:30]} Ne4 {[%emt 0:00:30]} 1/2-1/2